bitfinex/quotes_BTCUSD_20240607
["timestamp","ask_amount","ask_price","bid_price","bid_amount"]
[1717730041439,0.00086,70815.0,70814.0,1.53469627]
[1717730041868,0.242,70833.0,70831.0,0.16266227]
[1717730042135,0.242,70833.0,70831.0,0.25266227]
[1717730042757,0.0775,70835.0,70831.0,0.25266227]
[1717730042976,0.167,70839.0,70831.0,0.25266227]
[1717730043218,0.0775,70836.0,70831.0,0.25266227]
[1717730043869,0.0775,70836.0,70831.0,0.52422372]
[1717730044084,0.0775,70836.0,70831.0,0.80658572]
[1717730044542,0.004,70839.0,70831.0,0.60458572]
[1717730044749,0.004,70839.0,70831.0,0.80858572]
[1717730044961,0.004,70839.0,70831.0,0.60658572]
[1717730045201,0.004,70839.0,70831.0,0.61058572]
[1717730045431,0.004,70839.0,70831.0,0.82258572]
[1717730045652,0.004,70839.0,70831.0,0.80658572]
[1717730046077,0.004,70839.0,70831.0,0.81758572]
[1717730046283,0.004,70839.0,70831.0,0.81558572]
[1717730046678,0.004,70839.0,70831.0,0.82658572]
[1717730047320,0.004,70839.0,70831.0,0.62658572]
[1717730047744,0.004,70839.0,70831.0,0.61758572]
[1717730047961,0.004,70839.0,70831.0,0.81758572]
[1717730048177,0.004,70839.0,70831.0,0.82758572]
[1717730048393,0.004,70839.0,70831.0,1.05958572]
[1717730049013,0.004,70839.0,70831.0,1.20828572]
[1717730049222,0.004,70839.0,70831.0,1.59082348]
[1717730051381,0.004,70839.0,70831.0,1.58082348]
[1717730051882,0.004,70839.0,70831.0,1.59282348]
[1717730052133,0.004,70839.0,70838.0,1.31001627]
[1717730052416,0.004,70839.0,70838.0,1.50001627]
[1717730053097,0.004,70839.0,70838.0,1.29801627]
[1717730053322,0.004,70839.0,70838.0,1.27691627]
[1717730053541,0.004,70839.0,70838.0,1.34391627]
[1717730054412,0.004,70839.0,70838.0,1.34991627]
[1717730054825,0.004,70839.0,70838.0,1.34391627]
[1717730055275,0.004,70839.0,70838.0,1.35091627]
[1717730055488,0.004,70839.0,70838.0,1.15791627]
[1717730055696,0.004,70839.0,70838.0,1.35991627]
[1717730059121,0.004,70839.0,70838.0,1.15791627]
[1717730060586,0.004,70839.0,70838.0,1.35991627]
[1717730065203,0.004,70839.0,70838.0,1.28401627]
[1717730065407,0.004,70839.0,70838.0,1.29691627]
[1717730065555,0.004,70839.0,70838.0,1.36391627]
[1717730068365,0.004,70839.0,70838.0,1.38122134]
[1717730078792,0.004,70839.0,70838.0,1.17922134]
[1717730079058,0.004,70839.0,70838.0,1.09932134]
[1717730079471,0.004,70839.0,70838.0,1.30132134]
[1717730080446,0.004,70839.0,70838.0,1.09932134]
[1717730080656,0.004,70839.0,70838.0,1.30132134]
[1717730081774,0.004,70839.0,70838.0,1.03232134]
[1717730081977,0.004,70839.0,70838.0,1.09932134]
[1717730082592,0.004,70839.0,70838.0,1.30132134]
[1717730085234,0.004,70839.0,70838.0,1.36086386]
[1717730085643,0.004,70839.0,70838.0,1.09386386]
[1717730085846,0.004,70839.0,70838.0,1.16086386]
[1717730086279,0.004,70839.0,70838.0,1.15886386]
[1717730087504,0.004,70839.0,70838.0,1.13738259]
[1717730087795,0.004,70839.0,70838.0,1.15886386]
[1717730088469,0.004,70839.0,70838.0,0.62052479]
[1717730088699,0.004,70839.0,70838.0,0.63990466]
[1717730088700,0.248,70839.0,70838.0,0.63990466]
[1717730088922,0.248,70839.0,70838.0,0.62842339]
[1717730089170,0.248,70839.0,70838.0,0.606501]
[1717730089401,0.248,70839.0,70838.0,0.62798227]
[1717730089838,0.248,70839.0,70838.0,0.65098227]
[1717730090320,0.248,70839.0,70838.0,0.67290557]
[1717730096124,0.248,70839.0,70838.0,0.6514243]
[1717730096755,0.248,70839.0,70838.0,0.67290557]
[1717730097366,0.24886,70839.0,70838.0,0.67290557]
[1717730100327,0.24886,70839.0,70838.0,0.5844243]
[1717730100528,0.24886,70839.0,70838.0,0.6514243]
[1717730101406,0.39327893,70839.0,70838.0,0.1790903]
[1717730101633,0.39327893,70839.0,70838.0,0.0379233]
[1717730101841,0.39327893,70839.0,70838.0,0.016]
[1717730102258,0.45676656,70839.0,70838.0,0.016]
[1717730102470,0.84486387,70839.0,70838.0,0.016]
[1717730103399,0.92947747,70839.0,70838.0,0.016]
[1717730103579,0.84486387,70839.0,70838.0,0.02048127]
[1717730103793,0.53199506,70839.0,70838.0,0.01148127]
[1717730104001,0.39327893,70839.0,70838.0,0.01548127]
[1717730104199,0.45673672,70839.0,70838.0,0.02248127]
[1717730104348,0.45673672,70839.0,70838.0,0.01848127]
[1717730104562,0.39327893,70839.0,70838.0,0.01848127]
[1717730104994,0.45673672,70839.0,70838.0,0.01848127]
[1717730105238,0.39327893,70839.0,70838.0,0.01148127]
[1717730105606,0.39627893,70839.0,70838.0,0.01148127]
[1717730106185,0.43855085,70839.0,70838.0,0.01148127]
[1717730106850,0.43555085,70839.0,70838.0,0.01148127]
[1717730107050,0.43555085,70839.0,70837.0,0.01148127]
[1717730107283,0.38531893,70838.0,70837.0,0.01148127]
[1717730108749,0.38831893,70838.0,70837.0,0.01148127]
[1717730110210,0.2439,70838.0,70837.0,0.02148127]
[1717730110418,0.2439,70838.0,70837.0,0.18565027]
[1717730111035,0.2409,70838.0,70837.0,0.18565027]
[1717730111241,0.2439,70838.0,70837.0,0.18565027]
[1717730111877,0.2439,70838.0,70837.0,0.18765027]
[1717730119050,0.2439,70838.0,70837.0,0.17765027]
[1717730121273,0.2409,70838.0,70837.0,0.17565027]
[1717730122312,0.2409,70838.0,70837.0,0.17665027]
[1717730122519,0.2409,70838.0,70837.0,0.17565027]
[1717730123377,0.2409,70838.0,70837.0,0.18565027]
[1717730124467,0.2409,70838.0,70837.0,0.18765027]
[1717730125728,0.2409,70838.0,70837.0,0.25465027]
[1717730128888,0.2409,70838.0,70837.0,0.18765027]
[1717730129159,0.2409,70838.0,70837.0,0.25465027]
[1717730129887,0.00486,70839.0,70838.0,0.02148127]
[1717730130137,0.00486,70839.0,70838.0,0.04448127]
[1717730130998,0.14927893,70839.0,70838.0,0.03448127]
[1717730131213,0.1553,70838.0,70834.0,0.067]
[1717730131428,0.38011893,70837.0,70836.0,0.01148127]
[1717730131640,0.2357,70836.0,70832.0,0.000946]
[1717730131848,0.2357,70836.0,70835.0,0.08848127]
[1717730132253,0.2357,70836.0,70835.0,0.067]
[1717730132461,0.2357,70836.0,70835.0,0.08848127]
[1717730132668,0.2357,70836.0,70835.0,0.067]
[1717730132873,0.2357,70836.0,70835.0,0.08848127]
[1717730134124,0.2357,70836.0,70835.0,0.067]
[1717730134332,0.38011893,70836.0,70835.0,0.067]
[1717730134528,0.38011893,70836.0,70835.0,0.068]
[1717730135320,0.38011893,70836.0,70835.0,0.08948127]
[1717730135527,0.38011893,70836.0,70835.0,0.068]
[1717730136139,0.38011893,70836.0,70835.0,0.07948127]
[1717730140087,0.38011893,70836.0,70835.0,0.08948127]
[1717730140282,0.38011893,70836.0,70835.0,0.07948127]
[1717730142736,0.38011893,70836.0,70835.0,0.01248127]
[1717730143061,0.38011893,70836.0,70835.0,0.07948127]
[1717730143527,0.4224059,70836.0,70835.0,0.07948127]
[1717730144365,0.38011893,70836.0,70835.0,0.07948127]
[1717730144805,0.38011893,70836.0,70835.0,0.01248127]
[1717730145005,0.38011893,70836.0,70835.0,0.07948127]
[1717730145233,0.44354939,70836.0,70835.0,0.07948127]
[1717730148421,0.44354939,70836.0,70835.0,0.01248127]
[1717730148621,0.44354939,70836.0,70835.0,0.07948127]
[1717730149057,0.42243541,70836.0,70835.0,0.07948127]
[1717730149256,0.38011893,70836.0,70835.0,0.07948127]
[1717730149587,0.42243569,70836.0,70835.0,0.001]
[1717730149805,0.77762187,70836.0,70835.0,0.01248127]
[1717730149948,0.77762187,70836.0,70835.0,0.001]
[1717730150168,0.79878012,70836.0,70835.0,0.001]
[1717730150794,0.6929889,70836.0,70835.0,0.01248127]
[1717730151216,0.79878012,70836.0,70835.0,0.01248127]
[1717730152721,0.6929889,70836.0,70835.0,0.01248127]
[1717730154850,0.777596,70836.0,70835.0,0.01248127]
[1717730155471,0.6929889,70836.0,70835.0,0.01248127]
[1717730156131,0.38011893,70836.0,70835.0,0.01248127]
[1717730156512,0.69300662,70836.0,70835.0,0.01248127]
[1717730157146,0.6930066,70836.0,70835.0,0.01248127]
[1717730157389,0.693009,70836.0,70835.0,0.01248127]
[1717730159366,0.38011893,70836.0,70835.0,0.01248127]
[1717730161020,0.44356408,70836.0,70835.0,0.01248127]
[1717730161655,0.44442408,70836.0,70835.0,0.01248127]
[1717730161863,0.4232738,70836.0,70835.0,0.02248127]
[1717730162467,0.4232738,70836.0,70835.0,0.01248127]
[1717730162865,0.4232738,70836.0,70835.0,0.02248127]
[1717730164556,0.4232738,70836.0,70835.0,0.01248127]
[1717730164725,0.4232738,70836.0,70835.0,0.02248127]
[1717730164928,0.4232738,70836.0,70835.0,0.01248127]
[1717730165330,0.38097893,70836.0,70835.0,0.01248127]
[1717730165631,0.42328012,70836.0,70835.0,0.01248127]
[1717730165835,0.42328012,70836.0,70835.0,0.02248127]
[1717730166267,0.38097893,70836.0,70835.0,0.02248127]
[1717730166486,0.38097893,70836.0,70835.0,0.07948127]
[1717730166892,0.38097893,70836.0,70835.0,0.08948127]
[1717730167339,0.38097893,70836.0,70835.0,0.07948127]
[1717730167513,0.37617893,70836.0,70835.0,0.08948127]
[1717730167766,0.14527893,70836.0,70835.0,0.08948127]
[1717730168631,0.18758614,70836.0,70835.0,0.16498127]
[1717730168836,0.14527893,70836.0,70835.0,0.16498127]
[1717730169691,0.14527893,70836.0,70835.0,0.08948127]
[1717730169921,0.14527893,70836.0,70835.0,0.16868127]
[1717730170548,0.14527893,70836.0,70835.0,0.09168127]
[1717730170700,0.14527893,70836.0,70835.0,0.15868127]
[1717730171536,0.14527893,70836.0,70835.0,0.1472]
[1717730171720,0.14527893,70836.0,70835.0,0.15868127]
[1717730172117,0.14527893,70836.0,70835.0,0.16868127]
[1717730173349,0.18758614,70836.0,70835.0,0.16868127]
[1717730174090,0.14527893,70836.0,70835.0,0.16868127]
[1717730174827,0.14527893,70836.0,70835.0,0.1472]
[1717730175263,0.14527893,70836.0,70835.0,0.15868127]
[1717730175500,0.14527893,70836.0,70835.0,0.07948127]
[1717730175723,0.14527893,70836.0,70835.0,0.068]
[1717730176216,0.14527893,70836.0,70835.0,0.07948127]
[1717730176462,0.14527893,70836.0,70835.0,0.02248127]
[1717730176721,0.14527893,70836.0,70835.0,0.07948127]
[1717730176936,0.22767893,70836.0,70835.0,0.01248127]
[1717730177141,0.22767893,70836.0,70835.0,0.07948127]
[1717730179489,0.14527893,70836.0,70835.0,0.07948127]
[1717730179659,0.14527893,70836.0,70835.0,0.08948127]
[1717730181139,0.14527893,70836.0,70835.0,0.07948127]
[1717730182737,0.14527893,70836.0,70835.0,0.08948127]
[1717730183179,0.14527893,70836.0,70835.0,0.07948127]
[1717730183657,0.14527893,70836.0,70835.0,0.01248127]
[1717730183874,0.14527893,70836.0,70835.0,0.07948127]
[1717730186368,0.14527893,70836.0,70835.0,0.01248127]
[1717730186808,0.14527893,70836.0,70835.0,0.07948127]
[1717730187240,0.20876301,70836.0,70835.0,0.07948127]
[1717730187711,0.14527893,70836.0,70835.0,0.07948127]
[1717730188160,0.38007893,70836.0,70835.0,0.001]
[1717730188392,0.38007893,70836.0,70835.0,0.01248127]
[1717730188622,0.38007893,70836.0,70835.0,0.001]
[1717730188623,0.77760412,70836.0,70835.0,0.001]
[1717730188849,0.38007893,70836.0,70835.0,0.001]
[1717730189308,0.77760111,70836.0,70835.0,0.001]
[1717730189932,0.38007893,70836.0,70835.0,0.068]
[1717730190345,0.77760541,70836.0,70835.0,0.068]
[1717730190561,0.69295997,70836.0,70835.0,0.068]
[1717730190979,0.77760541,70836.0,70835.0,0.068]
[1717730191197,0.69295997,70836.0,70835.0,0.068]
[1717730191628,0.69295997,70836.0,70835.0,0.001]
[1717730191840,0.77760541,70836.0,70835.0,0.001]
[1717730192057,0.69295997,70836.0,70835.0,0.001]
[1717730192489,0.69295997,70836.0,70835.0,0.01248127]
[1717730193327,0.69295997,70836.0,70835.0,0.001]
[1717730194822,0.69295806,70836.0,70835.0,0.01248127]
[1717730195033,0.69295806,70836.0,70835.0,0.001]
[1717730195288,0.69295806,70836.0,70835.0,0.01248127]
[1717730195934,0.44356397,70836.0,70835.0,0.01248127]
[1717730196597,0.38007893,70836.0,70835.0,0.01248127]
[1717730196817,0.38007893,70836.0,70835.0,0.001]
[1717730197235,0.69295515,70836.0,70835.0,0.001]
[1717730197442,0.77760409,70836.0,70835.0,0.001]
[1717730197663,0.7776165,70836.0,70835.0,0.001]
[1717730198569,0.69296264,70836.0,70835.0,0.001]
[1717730199011,0.77762038,70836.0,70835.0,0.001]
[1717730200991,0.69296264,70836.0,70835.0,0.01248127]
[1717730201411,0.77762038,70836.0,70835.0,0.01248127]
[1717730206802,0.69296264,70836.0,70835.0,0.01248127]
[1717730207238,0.38007893,70836.0,70835.0,0.01248127]
[1717730207447,0.69295059,70836.0,70835.0,0.01248127]
[1717730208283,0.69295059,70836.0,70835.0,0.001]
[1717730208773,0.91877933,70836.0,70835.0,0.001]
[1717730208994,0.83412159,70836.0,70835.0,0.001]
[1717730209728,0.83414206,70836.0,70835.0,0.001]
[1717730210576,0.93997989,70836.0,70835.0,0.001]
[1717730211005,1.69408391,70836.0,70835.0,0.001]
[1717730211229,1.87697854,70836.0,70835.0,0.001]
[1717730211449,2.40687472,70836.0,70835.0,0.001]
[1717730212074,2.68921672,70836.0,70835.0,0.001]
[1717730212276,2.68921672,70836.0,70835.0,0.002]
[1717730212481,2.25112121,70836.0,70835.0,0.001]
[1717730212658,2.15932054,70836.0,70835.0,0.001]
[1717730212864,2.16232054,70836.0,70835.0,0.002]
[1717730214652,2.1623432,70836.0,70835.0,0.002]
[1717730215621,2.0953432,70836.0,70835.0,0.002]
[1717730217218,1.78242841,70836.0,70835.0,0.002]
[1717730217451,2.09540614,70836.0,70835.0,0.002]
[1717730218755,2.09540386,70836.0,70835.0,0.002]
[1717730219931,1.78248941,70836.0,70835.0,0.002]
[1717730220161,2.0954042,70836.0,70835.0,0.002]
[1717730220378,1.77522444,70836.0,70835.0,0.002]
[1717730223757,1.63010657,70836.0,70835.0,0.002]
[1717730225866,1.63011894,70836.0,70835.0,0.002]
[1717730227310,1.63011894,70836.0,70835.0,0.01348127]
[1717730228307,1.63011894,70836.0,70835.0,0.002]
[1717730228777,1.63011894,70836.0,70835.0,0.01348127]
[1717730228950,1.63011894,70836.0,70835.0,0.002]
[1717730229154,1.63011894,70836.0,70835.0,0.01348127]
[1717730229360,1.77523681,70836.0,70835.0,0.01348127]
[1717730231613,1.63011894,70836.0,70835.0,0.01348127]
[1717730232604,1.33716472,70836.0,70835.0,0.01348127]
[1717730232841,1.63010643,70836.0,70835.0,0.01348127]
[1717730233351,1.3371449,70836.0,70835.0,0.01348127]
[1717730233577,1.63008911,70836.0,70835.0,0.01348127]
[1717730233834,1.3371449,70836.0,70835.0,0.002]
[1717730234514,1.63008558,70836.0,70835.0,0.002]
[1717730235224,1.77520345,70836.0,70835.0,0.002]
[1717730236327,1.84220345,70836.0,70835.0,0.002]
[1717730236532,1.97123653,70836.0,70835.0,0.002]
[1717730239774,1.97125819,70836.0,70835.0,0.002]
[1717730240227,1.90425819,70836.0,70835.0,0.002]
[1717730240515,1.97125819,70836.0,70835.0,0.002]
[1717730244206,1.90031534,70836.0,70835.0,0.002]
[1717730244409,2.40541437,70836.0,70835.0,0.002]
[1717730245049,2.68775637,70836.0,70835.0,0.002]
[1717730249785,2.68777941,70836.0,70835.0,0.002]
[1717730249998,2.62077941,70836.0,70835.0,0.002]
[1717730250435,2.47566154,70836.0,70835.0,0.002]
[1717730251510,2.47569796,70836.0,70835.0,0.002]
[1717730251933,1.72465926,70836.0,70835.0,0.002]
[1717730252159,1.52044923,70836.0,70835.0,0.01348127]
[1717730252379,2.08553887,70836.0,70835.0,0.002]
[1717730252606,1.64743411,70836.0,70835.0,0.002]
[1717730253059,1.43267401,70836.0,70835.0,0.002]
[1717730255068,1.33267401,70836.0,70835.0,0.17128127]
[1717730255290,0.895359,70836.0,70835.0,0.24788127]
[1717730257355,0.895359,70836.0,70835.0,0.31488127]
[1717730257570,0.6023819,70836.0,70835.0,0.31488127]
[1717730257789,0.60209969,70836.0,70835.0,0.31488127]
[1717730258213,0.70793923,70836.0,70835.0,0.31488127]
[1717730258431,0.70493923,70836.0,70835.0,0.31388127]
[1717730258857,0.70493923,70836.0,70835.0,0.31288127]
[1717730259062,0.71593923,70836.0,70835.0,0.31388127]
[1717730259503,0.70493923,70836.0,70835.0,0.31288127]
[1717730259940,0.72493923,70836.0,70835.0,0.31488127]
[1717730260357,0.71293923,70836.0,70835.0,0.31388127]
[1717730260557,0.71993923,70836.0,70835.0,0.31488127]
[1717730262372,0.61409969,70836.0,70835.0,0.31488127]
[1717730262572,0.69874772,70836.0,70835.0,0.31488127]
[1717730262919,0.55757672,70836.0,70835.0,0.32488127]
[1717730263130,0.55757672,70836.0,70835.0,0.31488127]
[1717730263131,0.47292869,70836.0,70835.0,0.31488127]
[1717730263348,0.22347599,70836.0,70835.0,0.31488127]
[1717730265187,0.15999672,70836.0,70835.0,0.31488127]
[1717730266084,0.15999672,70836.0,70835.0,0.32488127]
[1717730266843,0.15999672,70836.0,70835.0,0.24788127]
[1717730267073,0.15999672,70836.0,70835.0,0.31488127]
[1717730267423,0.20230045,70836.0,70835.0,0.31488127]
[1717730268554,0.20229645,70836.0,70835.0,0.31488127]
[1717730269555,0.20229352,70836.0,70835.0,0.31488127]
[1717730271105,0.15999672,70836.0,70835.0,0.3034]
[1717730271319,0.15999672,70836.0,70835.0,0.31488127]
[1717730271983,0.15999672,70836.0,70835.0,0.32488127]
[1717730273076,0.15199672,70836.0,70835.0,0.32388127]
[1717730273323,0.14499672,70836.0,70835.0,0.46405427]
[1717730273737,0.14499672,70836.0,70835.0,0.46505427]
[1717730274732,0.14499672,70836.0,70835.0,0.46405427]
[1717730274944,0.14499672,70836.0,70835.0,0.46605427]
[1717730275498,0.14499672,70836.0,70835.0,0.45605427]
[1717730276022,0.15399672,70836.0,70835.0,0.45705427]
[1717730276432,0.14499672,70836.0,70835.0,0.45605427]
[1717730276852,0.14499672,70836.0,70835.0,0.45405427]
[1717730277287,0.14499672,70836.0,70835.0,0.38905427]
[1717730277497,0.14499672,70836.0,70835.0,0.45605427]
[1717730279446,0.14499672,70836.0,70835.0,0.46605427]
[1717730279660,0.14499672,70836.0,70835.0,0.45605427]
[1717730286843,0.14499672,70836.0,70835.0,0.46605427]
[1717730289041,0.14499672,70836.0,70835.0,0.46700027]
[1717730289466,0.14499672,70836.0,70835.0,0.45700027]
[1717730290749,0.14499672,70836.0,70835.0,0.445519]
[1717730292449,0.14499672,70836.0,70835.0,0.46700027]
[1717730297013,0.14499672,70836.0,70835.0,0.445519]
[1717730297505,0.14499672,70836.0,70835.0,0.46700027]
[1717730299967,0.14499672,70836.0,70835.0,0.445519]
[1717730301806,0.14499672,70836.0,70835.0,0.46700027]
[1717730302513,0.00086,70836.0,70835.0,0.96774627]
[1717730303390,0.00086,70836.0,70835.0,1.25009227]
[1717730303649,0.00086,70836.0,70835.0,1.35009227]
[1717730304304,0.00086,70836.0,70835.0,1.34809227]
[1717730304520,0.00186,70836.0,70835.0,1.35809227]
[1717730304736,0.00086,70836.0,70835.0,1.34809227]
[1717730305170,0.00186,70836.0,70835.0,1.35709227]
[1717730305813,0.00286,70836.0,70835.0,1.36409227]
[1717730307671,0.00486,70839.0,70838.0,1.07801627]
[1717730307892,0.00486,70839.0,70838.0,1.40371627]
[1717730308117,0.00086,70848.0,70847.0,0.645447]
[1717730308330,0.00086,70848.0,70847.0,0.97262827]
[1717730309446,0.00186,70848.0,70847.0,0.98062827]
[1717730311129,0.00286,70848.0,70847.0,0.98662827]
[1717730313053,0.00286,70848.0,70847.0,1.26892627]
[1717730313264,0.00286,70848.0,70847.0,1.36892627]
[1717730314125,0.00186,70848.0,70847.0,1.36292627]
[1717730314553,0.00186,70848.0,70847.0,1.37492627]
[1717730315398,0.00086,70848.0,70847.0,1.36692627]
[1717730315741,0.00086,70848.0,70847.0,1.38092627]
[1717730318810,0.00086,70848.0,70847.0,1.39773753]
[1717730321382,0.00086,70848.0,70847.0,1.68003553]
[1717730323843,0.00086,70848.0,70847.0,1.68568353]
[1717730327211,0.004,70849.0,70848.0,1.59921027]
[1717730327446,0.004,70849.0,70848.0,1.72221027]
[1717730327927,0.00086,70852.0,70851.0,1.45046827]
[1717730328142,0.00086,70852.0,70851.0,1.64046827]
[1717730330154,0.00086,70852.0,70851.0,1.64746827]
[1717730330892,0.00086,70852.0,70851.0,1.38746827]
[1717730331115,0.00086,70852.0,70851.0,1.65646827]
[1717730333639,0.08567392,70859.0,70858.0,0.443381]
[1717730333891,0.08567392,70859.0,70858.0,0.533381]
[1717730334153,0.08567392,70859.0,70858.0,0.53486227]
[1717730334932,0.00397392,70859.0,70858.0,0.54986227]
[1717730335177,0.00397392,70859.0,70858.0,0.55186227]
[1717730335429,0.00397392,70859.0,70858.0,1.11311627]
[1717730338578,0.00397392,70859.0,70858.0,1.25323908]
[1717730339640,0.00397392,70859.0,70858.0,1.17423908]
[1717730339848,0.00397392,70859.0,70858.0,1.25723908]
[1717730340721,0.00397392,70859.0,70858.0,1.24223908]
[1717730340935,0.00397392,70859.0,70858.0,1.25523908]
[1717730341144,0.00397392,70859.0,70858.0,1.26923908]
[1717730341361,0.00397392,70859.0,70858.0,1.25523908]
[1717730341583,0.00397392,70859.0,70858.0,1.24223908]
[1717730341846,0.00397392,70859.0,70858.0,1.25023908]
[1717730342295,0.00397392,70859.0,70858.0,1.05023908]
[1717730342806,0.00397392,70859.0,70858.0,1.25023908]
[1717730343531,0.00397392,70859.0,70858.0,1.32229783]
[1717730345358,0.00397392,70859.0,70858.0,1.33884684]
[1717730348636,0.00397392,70859.0,70858.0,1.33779254]
[1717730349032,0.00397392,70859.0,70858.0,1.40349254]
[1717730349233,0.00397392,70859.0,70858.0,1.63609254]
[1717730350007,0.00397392,70859.0,70858.0,1.20149254]
[1717730350211,0.00397392,70859.0,70858.0,1.20349254]
[1717730350341,0.00397392,70859.0,70858.0,1.20149254]
[1717730350559,0.00397392,70859.0,70858.0,1.20349254]
[1717730350765,0.00397392,70859.0,70858.0,1.20163485]
[1717730352369,0.00397392,70859.0,70858.0,1.20363485]
[1717730352774,0.00397392,70859.0,70858.0,1.20441251]
[1717730352990,0.00483392,70859.0,70858.0,1.20441251]
[1717730353432,0.00483392,70859.0,70858.0,1.40441251]
[1717730357372,0.00483392,70859.0,70858.0,1.20241251]
[1717730358227,0.00483392,70859.0,70858.0,1.40441251]
[1717730358442,0.00483392,70859.0,70858.0,1.4638983]
[1717730359193,0.00483392,70859.0,70858.0,1.9801523]
[1717730359401,0.00483392,70859.0,70858.0,2.0801523]
[1717730359973,0.00483392,70859.0,70858.0,2.00807909]
[1717730360182,0.00483392,70859.0,70858.0,2.0802755]
[1717730361680,0.00483392,70859.0,70858.0,1.92423658]
[1717730366119,0.00483392,70859.0,70858.0,1.92843658]
[1717730366982,0.00483392,70859.0,70858.0,1.92933516]
[1717730370803,0.00483392,70859.0,70858.0,1.84723516]
[1717730372630,0.00483392,70859.0,70858.0,1.62375389]
[1717730372840,0.00483392,70859.0,70858.0,1.64523516]
[1717730373053,0.23223392,70859.0,70858.0,1.64523516]
[1717730373484,0.23223392,70859.0,70858.0,1.64723516]
[1717730373697,0.23223392,70859.0,70858.0,1.64523516]
[1717730374163,0.23223392,70859.0,70858.0,1.64663741]
[1717730375490,0.00483392,70859.0,70858.0,1.43109306]
[1717730375702,0.24763392,70859.0,70858.0,1.49809306]
[1717730377450,0.24763392,70859.0,70858.0,1.35867992]
[1717730377659,0.24763392,70859.0,70858.0,1.49823714]
[1717730378509,0.24763392,70859.0,70858.0,1.49963897]
[1717730384411,0.08803392,70859.0,70858.0,1.49963897]
[1717730384598,0.00483392,70859.0,70858.0,1.50163897]
[1717730384840,0.00483392,70859.0,70858.0,1.49963897]
[1717730385057,0.00483392,70859.0,70858.0,1.42708399]
[1717730385300,0.00483392,70859.0,70858.0,1.78344465]
[1717730386156,0.00483392,70859.0,70858.0,1.78169489]
[1717730386380,0.00483392,70859.0,70858.0,1.77769489]
[1717730386612,0.00483392,70859.0,70858.0,1.77369489]
[1717730386823,0.00483392,70859.0,70858.0,1.79169489]
[1717730387240,0.00483392,70859.0,70858.0,1.78369489]
[1717730387462,0.00483392,70859.0,70858.0,1.78464089]
[1717730387721,0.00483392,70859.0,70858.0,2.2694808]
[1717730387986,0.00483392,70859.0,70858.0,2.17504089]
[1717730388211,0.00483392,70859.0,70858.0,2.18304089]
[1717730388683,0.00483392,70859.0,70858.0,2.19104089]
[1717730388890,0.00483392,70859.0,70858.0,2.18304089]
[1717730389298,0.00483392,70859.0,70858.0,2.19704089]
[1717730389518,0.00086,70861.0,70860.0,1.45994227]
[1717730389765,0.00862,70863.0,70862.0,0.63588127]
[1717730389974,0.00862,70863.0,70862.0,1.10359622]
[1717730390672,0.00862,70863.0,70862.0,1.18799801]
[1717730391303,0.00862,70863.0,70862.0,2.09142922]
[1717730392176,0.00862,70863.0,70862.0,2.11742922]
[1717730393686,0.00862,70863.0,70862.0,2.10442922]
[1717730394083,0.00862,70863.0,70862.0,2.11842922]
[1717730394547,0.00862,70863.0,70862.0,2.10442922]
[1717730394962,0.00862,70863.0,70862.0,2.11842922]
[1717730395143,0.00862,70863.0,70862.0,2.10542922]
[1717730395378,0.00862,70863.0,70862.0,2.16867829]
[1717730395804,0.00862,70863.0,70862.0,2.18267829]
[1717730396773,0.00086,70871.0,70868.0,1.35983027]
[1717730397006,0.00086,70871.0,70868.0,2.06697836]
[1717730398042,0.00086,70871.0,70868.0,2.07597836]
[1717730398460,0.00086,70871.0,70868.0,2.08677836]
[1717730398708,0.00086,70871.0,70868.0,2.09777836]
[1717730398914,0.00086,70871.0,70868.0,2.08677836]
[1717730399346,0.00086,70871.0,70868.0,2.09777836]
[1717730399759,0.00086,70871.0,70868.0,2.08877836]
[1717730400191,0.00086,70871.0,70868.0,2.09877836]
[1717730400426,0.00086,70871.0,70868.0,2.10739836]
[1717730400639,0.00086,70871.0,70868.0,2.09739836]
[1717730401097,0.00086,70871.0,70868.0,2.10839836]
[1717730401507,0.00086,70871.0,70868.0,2.09739836]
[1717730401743,0.00086,70871.0,70868.0,2.10839836]
[1717730402173,0.00086,70871.0,70868.0,2.09739836]
[1717730402388,0.00086,70871.0,70868.0,1.94279836]
[1717730402615,0.00086,70871.0,70868.0,1.86779836]
[1717730402839,0.00086,70871.0,70868.0,1.85579836]
[1717730403130,0.00086,70871.0,70868.0,1.86779836]
[1717730403993,0.00086,70871.0,70868.0,1.92724505]
[1717730404464,0.00086,70871.0,70868.0,2.10964505]
[1717730404692,0.00086,70871.0,70869.0,1.45981627]
[1717730404906,0.00086,70871.0,70869.0,2.01061105]
[1717730405120,0.00086,70871.0,70869.0,2.05277255]
[1717730405343,0.00086,70871.0,70869.0,2.05273254]
[1717730406964,0.00086,70871.0,70869.0,2.06673254]
[1717730407186,0.00086,70871.0,70869.0,2.02461105]
[1717730407593,0.00086,70871.0,70869.0,2.03861105]
[1717730410734,0.00086,70871.0,70869.0,1.95661105]
[1717730411852,0.00086,70871.0,70869.0,2.04228189]
[1717730412092,0.00086,70871.0,70869.0,2.18486919]
[1717730412341,0.24232,70870.0,70869.0,1.61085026]
[1717730412560,0.24232,70870.0,70869.0,1.61285026]
[1717730412771,0.24232,70870.0,70869.0,1.75340357]
[1717730412990,0.00862,70870.0,70869.0,1.75340357]
[1717730413210,0.00862,70870.0,70869.0,1.55140357]
[1717730413445,0.00862,70870.0,70869.0,1.55340357]
[1717730413873,0.00862,70870.0,70869.0,1.75340357]
[1717730415234,0.00862,70870.0,70869.0,1.55140357]
[1717730415401,0.00862,70870.0,70869.0,1.75340357]
[1717730415620,0.00862,70870.0,70869.0,1.75140357]
[1717730415795,0.00862,70870.0,70869.0,1.75340357]
[1717730416001,0.00862,70870.0,70869.0,1.55140357]
[1717730416204,0.00862,70870.0,70869.0,1.75340357]
[1717730416809,0.00862,70870.0,70869.0,1.55140357]
[1717730417258,0.24432,70870.0,70869.0,1.4622283]
[1717730417478,0.24432,70870.0,70869.0,1.40280357]
[1717730417688,0.24432,70870.0,70869.0,1.46980357]
[1717730418407,0.24432,70870.0,70869.0,1.52923089]
[1717730419031,0.24432,70870.0,70869.0,1.38664359]
[1717730419245,0.24432,70870.0,70869.0,1.38758959]
[1717730419483,0.24432,70870.0,70869.0,1.53171846]
[1717730421483,0.00862,70870.0,70869.0,1.53171846]
[1717730421716,0.00862,70870.0,70869.0,1.53371846]
[1717730421944,0.00862,70870.0,70869.0,1.53171846]